bitfinex-derivatives/quotes_ETHF0:USTF0_20250410
["timestamp","ask_amount","ask_price","bid_price","bid_amount"]
[1744300446940,13.3693,1502.9,1502.3,3.2078]
[1744300447140,3.32916,1502.9,1502.3,45.33996]
[1744300447343,1.33207,1502.5,1502.4,4.40790264]
[1744300447541,3.32942,1502.8,1502.3,44.0078]
[1744300447542,1.3321,1502.4,1502.3,7.61570264]
[1744300447738,1.33217,1502.4,1502.3,0.00996942]
[1744300447939,13.37926942,1502.6,1502.3,4.41787206]
[1744300448144,10.17146942,1502.6,1502.3,4.41787206]
[1744300448346,1.33202,1502.5,1502.4,4.40790264]
[1744300448544,1.42205566,1502.5,1502.4,4.40790264]
[1744300448740,1.3321,1502.4,1502.3,0.00996942]
[1744300449245,1.3321,1502.4,1502.3,4.41787206]
[1744300449542,1.42213566,1502.4,1502.3,4.41787206]
[1744300450539,1.42213566,1502.4,1502.3,0.00996942]
[1744300450742,0.09003566,1502.4,1502.3,10.75006206]
[1744300450945,0.00996942,1502.6,1502.5,1.33202]
[1744300451143,5.06,1503.5,1502.6,3.32978]
[1744300451338,16.03755,1503.6,1503.1,3.2078]
[1744300451535,0.1329964,1503.8,1503.1,3.2078]
[1744300451735,1.33126,1503.4,1503.2,4.40790264]
[1744300451949,3.32744,1503.7,1503.2,4.40790264]
[1744300452146,0.36252997,1503.6,1503.3,4.40790264]
[1744300452341,3.32739,1503.7,1503.3,3.21776942]
[1744300452548,1.33113,1503.5,1503.4,4.40790264]
[1744300452748,1.33108,1503.6,1503.4,5.73912264]
[1744300453052,0.1329964,1503.8,1503.4,5.73912264]
[1744300453053,0.1329964,1503.8,1503.5,7.61570264]
[1744300453348,1.33104,1503.6,1503.5,7.61570264]
[1744300453647,1.33122,1503.4,1503.3,0.00996942]
[1744300454042,1.33122,1503.4,1503.3,4.41787206]
[1744300454239,1.42125566,1503.4,1503.3,4.41787206]
[1744300454442,1.42125566,1503.4,1503.3,0.00996942]
[1744300454945,1.42125566,1503.4,1503.3,4.41787206]
[1744300455552,1.42125566,1503.4,1503.3,0.00996942]
[1744300456251,1.33148,1503.1,1503.0,3.2078]
[1744300456447,1.33148,1503.1,1503.0,7.61570264]
[1744300456647,1.33182,1502.8,1502.6,3.2078]
[1744300456847,3.32893,1503.1,1502.7,4.40790264]
[1744300457353,0.09003566,1502.9,1502.8,8.94745264]
[1744300457547,1.33175,1502.8,1502.7,0.00996942]
[1744300457746,1.33175,1502.8,1502.2,15.24538313]
[1744300457747,1.33219,1502.3,1502.2,15.24538313]
[1744300458248,1.42222566,1502.3,1502.2,19.65328577]
[1744300458448,1.78403458,1502.3,1502.2,13.87813313]
[1744300458652,1.33246,1502.0,1501.9,50.04792639]
[1744300458845,1.69426892,1502.0,1501.9,50.04792639]
[1744300459047,1.33246,1502.0,1501.9,50.04792639]
[1744300459447,1.42249566,1502.0,1501.9,54.45582903]
[1744300459845,1.42249566,1502.0,1501.9,4.40790264]
[1744300460154,0.18007132,1502.0,1501.9,4.40790264]
[1744300460353,0.18007132,1502.0,1501.9,9.40790264]
[1744300460555,1.51253132,1502.0,1501.9,4.40790264]
[1744300460948,0.18007132,1502.0,1501.9,4.40790264]
[1744300461248,1.51253132,1502.0,1501.9,14.53430264]
[1744300461455,0.18007132,1502.0,1501.9,15.86685264]
[1744300461648,0.18007132,1502.0,1501.9,20.86685264]
[1744300461850,1.33208,1502.5,1502.2,1.33222]
[1744300462146,6.53738,1502.8,1502.4,3.2078]
[1744300462147,3.2078,1502.8,1502.4,3.2078]
[1744300462346,1.33193,1502.6,1502.5,10.1264]
[1744300462746,1.33193,1502.6,1502.5,14.2111327]
[1744300462941,0.00996942,1502.7,1502.5,14.2111327]
[1744300463141,1.33193,1502.6,1502.5,14.2111327]
[1744300463544,3.32847,1503.3,1502.6,4.07476328]
[1744300463850,0.36169653,1503.2,1502.9,3.2078]
[1744300464050,3.32805,1503.4,1503.0,10.2669]
[1744300464349,1.3313,1503.4,1503.1,8.61401328]
[1744300464556,1.3313,1503.4,1503.2,10.2669]
[1744300464750,3.32728,1503.8,1503.3,1.33127]
[1744300464948,1.33113,1503.5,1503.4,10.2669]
[1744300465149,1.33113,1503.5,1503.4,14.34166328]
[1744300465447,1.33113,1503.5,1503.4,10.2669]
[1744300465651,3.86441692,1503.9,1503.4,19.34166328]
[1744300465956,1.33053,1504.2,1503.7,3.2078]
[1744300466252,1.84577422,1504.7,1504.0,3.2078]
[1744300466455,1.33016,1504.6,1504.5,3.2078]
[1744300466650,1.33033,1504.4,1504.3,3.2078]
[1744300466853,1.33042,1504.3,1504.2,0.00996942]
[1744300467155,101.537,1504.8,1504.2,0.00996942]
[1744300467346,101.537,1504.8,1504.3,4.07476328]
[1744300467544,101.537,1504.8,1504.4,13.4061]
[1744300467748,1.33011,1504.7,1504.4,17.48086328]
[1744300467951,0.53946905,1505.0,1504.6,3.2078]
[1744300468147,101.501,1505.4,1504.7,14.27306328]
[1744300468347,3.2078,1505.4,1504.8,3.2078]
[1744300468661,9.9153,1505.3,1504.9,10.1983]
[1744300468854,3.32378,1505.4,1504.9,14.27306328]
[1744300468855,3.32363,1505.4,1504.9,14.27306328]
[1744300469055,3.2078,1505.7,1505.0,4.07476328]
[1744300469254,1.32952,1505.4,1505.1,10.1983]
[1744300469554,3.32297,1505.7,1505.1,14.27306328]
[1744300469866,3.32231,1506.0,1505.2,7.28256328]
[1744300470053,3.73625733,1506.1,1505.4,3.2078]
[1744300470254,3.32192,1506.2,1505.6,3.2078]
[1744300470456,3.2078,1506.9,1506.0,3.2078]
[1744300470753,6.52865,1506.7,1506.3,3.2078]
[1744300470948,1.32892,1506.0,1505.9,1.5665]
[1744300471156,3.32253,1505.9,1505.2,3.2078]
[1744300471361,4.53681,1505.9,1505.8,9.42e-06]
[1744300471558,1.32901,1505.9,1505.8,9.42e-06]
[1744300472058,3.2078,1506.4,1505.8,5.00000942]
[1744300472250,3.2078,1506.4,1505.8,9.42e-06]
[1744300472450,3.2078,1506.1,1505.8,9.42e-06]
[1744300472656,0.00996,1506.3,1505.9,3.2078]
[1744300472958,0.00996,1506.3,1506.1,3.2078]
[1744300473356,0.00996,1506.3,1506.1,8.2078]
[1744300473555,0.00996,1506.3,1505.8,3.20780942]
[1744300473860,3.32028,1507.0,1506.2,3.2078]
[1744300474059,3.2078,1506.7,1506.2,3.2078]
[1744300474460,3.2078,1506.7,1505.8,3.20780942]
[1744300474664,1.3287,1506.3,1505.8,3.20780942]
[1744300474858,3.2078,1506.0,1505.8,9.42e-06]
[1744300475058,4.53681,1505.9,1505.8,9.42e-06]
[1744300475658,9.53681,1505.9,1505.8,9.42e-06]
[1744300476956,3.32323,1505.6,1504.8,3.2078]
[1744300477163,3.32297,1505.7,1505.0,3.2078]
[1744300477365,3.2078,1505.6,1505.1,10.0695]
[1744300477566,1.32963,1505.2,1505.1,10.0695]
[1744300477769,3.2078,1505.4,1504.8,1.32995]
[1744300477970,0.09003566,1505.1,1504.8,10.0695]
[1744300478269,3.2078,1504.9,1504.1,8.0242]
[1744300478570,3.2078,1504.6,1504.3,0.00996942]
[1744300478766,1.33033,1504.4,1504.3,0.00996942]
[1744300479170,3.32276,1505.8,1504.3,8.21776942]
[1744300479363,9.6979,1505.3,1504.6,3.2078]
[1744300479665,13.02181,1505.3,1504.8,3.2078]
[1744300479871,1.32969,1505.2,1504.8,3.2078]
[1744300480065,1.32973,1505.1,1504.9,10.4142]
[1744300480267,12.9057,1505.2,1504.9,10.4142]
[1744300480474,12.9057,1505.2,1504.6,44.0078]
[1744300480668,12.9057,1505.2,1504.7,10.4142]
[1744300480861,12.9057,1505.2,1504.7,14.95201]
[1744300481169,16.22982,1505.2,1504.4,3.2078]
[1744300481365,3.32429,1505.1,1504.4,13.622]
[1744300481567,13.02244,1505.0,1504.4,13.622]
[1744300481765,9.6979,1505.0,1504.4,13.622]
[1744300481970,1.33004,1504.8,1504.5,4.53803]
[1744300482368,12.9057,1505.0,1504.7,3.2078]
[1744300482571,1.33,1504.8,1504.7,3.2078]
[1744300482773,16.1135,1505.0,1504.7,3.2078]
[1744300482960,1.32998,1504.8,1504.4,10.4142]
[1744300483160,1.32998,1504.8,1504.6,1.26061567]
[1744300483361,9.6979,1505.0,1504.9,1.32989]
[1744300483672,8.36192858,1505.7,1504.9,3.2078]
[1744300483874,8.36192858,1505.7,1505.3,3.2078]
[1744300483875,9.8038,1505.6,1505.3,3.2078]
[1744300484167,1.32945,1505.4,1505.3,3.2078]
[1744300484366,1.32942,1505.5,1505.3,3.2078]
[1744300484765,9.8038,1505.4,1505.1,9.69316942]
[1744300484961,1.32959,1505.3,1505.1,3.21776942]
[1744300485166,13.0116,1505.4,1505.1,3.21776942]
[1744300485368,13.0116,1505.4,1505.3,4.53734]
[1744300485567,13.0116,1505.4,1505.3,3.2078]
[1744300485764,9.8038,1505.4,1505.3,4.53734]
[1744300486070,5.15412858,1505.7,1505.3,3.2078]
[1744300486375,1.32941,1505.5,1505.2,14.88168]
[1744300486768,3.2078,1505.5,1505.2,14.8817]
[1744300487071,4.53716,1505.5,1505.4,3.2078]
[1744300487269,4.53716,1505.5,1505.2,14.88167]
[1744300487663,0.13282858,1505.7,1505.4,3.2078]
[1744300487869,1.3293,1505.6,1505.4,3.2078]
[1744300488270,4.5371,1505.6,1505.4,13.3849]
[1744300488469,0.13282858,1505.7,1505.4,10.1771]
[1744300488665,1.32936,1505.5,1505.4,10.1771]
[1744300488875,1.32931,1505.6,1505.4,13.3849]
[1744300489071,0.13282858,1505.7,1505.4,13.3849]
[1744300489372,1.32899,1506.0,1505.6,3.2078]
[1744300489678,1.32901,1505.9,1505.8,3.2078]
[1744300490479,10.4827,1506.1,1505.8,3.2078]
[1744300490672,17.01259,1506.1,1505.7,10.1771]
[1744300490975,17.01259,1506.1,1505.7,13.3849]
[1744300491170,13.6905,1506.1,1505.7,13.3849]
[1744300491372,1.32902,1505.9,1505.7,13.3849]
[1744300491579,1.32903,1505.9,1505.7,14.71403]
[1744300491781,3.2078,1505.9,1505.7,13.3849]
[1744300492073,1.32899,1506.0,1505.7,18.3849]
[1744300492373,6.53055,1505.8,1505.5,3.2078]
[1744300492672,1.32927,1505.6,1505.5,0.00996942]
[1744300492864,101.362,1506.2,1505.7,3.2078]
[1744300493064,101.49478449,1506.2,1505.8,3.2078]
[1744300493274,0.13278449,1506.2,1506.0,3.2078]
[1744300493475,8.34869,1506.6,1506.0,4.53666]
[1744300493773,3.3201,1507.0,1506.5,4.53626]
[1744300493968,3.31988,1507.1,1506.5,3.2078]
[1744300494165,3.31988,1507.1,1505.9,0.664]
[1744300494166,9.5605,1507.1,1506.9,3.2078]
[1744300494378,1.32795,1507.1,1507.0,9.8807]
[1744300495075,10.2673,1507.2,1506.8,3.2078]
[1744300495273,0.10901762,1507.5,1507.0,3.2078]
[1744300495476,0.10901762,1507.5,1507.3,3.2078]
[1744300495672,0.10901762,1507.5,1507.4,9.8807]
[1744300496071,1.32769,1507.4,1507.3,3.2078]
[1744300496274,0.10901762,1507.5,1507.3,3.2078]
[1744300496676,0.10901762,1507.5,1507.4,9.8807]
[1744300496880,0.10901762,1507.5,1507.4,11.20839]
[1744300497083,1.32728,1507.9,1507.4,14.8807]
[1744300497378,3.2078,1508.2,1507.8,3.2078]
[1744300497581,3.2078,1508.2,1507.9,9.8545]
[1744300497582,1.32703,1508.2,1507.9,9.8545]
[1744300497882,12.96438,1508.5,1507.9,9.8545]
[1744300498175,1.32695,1508.3,1507.9,9.8545]
[1744300498381,1.32695,1508.3,1508.0,3.2078]
[1744300498873,9.6475,1508.5,1508.0,3.2078]
[1744300498874,3.2078,1508.4,1508.0,3.2078]
[1744300499065,1.32701,1508.2,1508.0,3.2078]
[1744300499273,1.32707,1508.1,1508.0,3.2078]
[1744300499676,3.2078,1508.1,1507.7,3.2078]
[1744300499870,3.2078,1508.5,1507.7,3.2078]
[1744300500077,9.6475,1508.6,1508.2,3.2078]
[1744300500277,3.31533,1509.2,1508.5,1.32669]
[1744300500485,3.31533,1509.2,1508.4,3.2078]
[1744300500486,10.2439,1509.2,1508.8,3.2078]
[1744300500780,1.32631,1509.0,1508.8,3.2078]
[1744300500976,1.32637,1508.9,1508.8,3.2078]
[1744300501282,1.32645,1508.8,1508.7,0.00996942]
[1744300501485,11.57035,1508.8,1508.7,9.42e-06]
[1744300501682,16.57035,1508.8,1508.7,9.42e-06]
[1744300501884,11.57035,1508.8,1508.7,9.42e-06]
[1744300502382,16.57035,1508.8,1508.7,9.42e-06]
[1744300502580,11.57035,1508.8,1508.7,9.42e-06]
[1744300502786,16.57035,1508.8,1508.7,9.42e-06]
[1744300503082,19.77815,1508.8,1508.7,9.42e-06]
[1744300503579,4.53425,1508.8,1508.7,9.42e-06]
[1744300503885,6.32645,1508.8,1508.7,9.42e-06]
[1744300504184,1.32645,1508.8,1508.7,9.42e-06]
[1744300504674,0.00996942,1508.9,1508.7,9.92510942]
[1744300504875,1.33633942,1508.9,1508.8,3.2078]
[1744300505076,11.50563942,1508.9,1508.8,3.2078]
[1744300505581,1.32645,1508.8,1508.7,9.42e-06]
[1744300505977,11.49575,1508.8,1508.7,9.42e-06]
[1744300506383,19.70355,1508.8,1508.7,9.42e-06]
[1744300506679,19.70355,1508.8,1507.7,8.2054]
[1744300506680,3.3179,1508.0,1507.4,3.2078]
[1744300506882,13.69348,1507.9,1507.5,9.5682]
[1744300507083,16.90131,1507.9,1507.5,9.5682]
[1744300507284,1.3276,1507.5,1507.4,3.2078]
[1744300507678,1.32792,1507.2,1507.1,3.2078]
[1744300507878,1.33748942,1507.6,1507.1,3.2078]
[1744300508083,0.00996942,1507.6,1507.5,4.5354]
[1744300508276,1.32769,1507.4,1507.3,3.2078]
[1744300508478,3.31906,1507.5,1507.1,3.2078]
[1744300508678,1.32795,1507.1,1507.0,0.00996942]
[1744300508882,1.3283,1506.7,1506.6,9.5682]
[1744300509079,3.32054,1506.8,1506.1,3.2078]
[1744300509283,1.32857,1506.4,1506.3,3.2078]
[1744300509488,1.32854,1506.5,1506.3,3.2078]
[1744300509687,1.32845,1506.6,1506.4,9.666]
[1744300509883,1.32848,1506.5,1506.4,9.666]
[1744300510192,13.69597,1506.8,1506.2,0.00996942]
[1744300510193,3.33098942,1506.6,1506.2,0.00996942]
[1744300510491,1.32865,1506.3,1506.2,9.42e-06]
[1744300511585,4.53645,1506.3,1506.2,9.42e-06]
[1744300511983,9.53645,1506.3,1506.2,9.42e-06]
[1744300512387,8.2078,1506.3,1505.4,3.2078]
[1744300512593,3.2078,1506.0,1505.6,3.2078]
[1744300512894,1.32922,1505.7,1505.4,3.2078]
[1744300513096,1.32911,1505.8,1505.5,9.754]
[1744300513281,1.3291,1505.8,1505.6,3.2078]
[1744300513586,0.00996942,1505.9,1505.6,3.2078]
[1744300513792,0.00996942,1505.9,1505.5,9.76396942]
[1744300513993,10.05886942,1505.9,1505.5,0.00996942]
[1744300514194,1.32927,1505.6,1505.5,0.00996942]
[1744300516690,11.37812,1505.7,1505.5,0.00996942]
[1744300516890,11.37812,1505.7,1505.5,3.21776942]
[1744300517094,1.32927,1505.6,1505.5,3.21776942]
[1744300517491,1.32927,1505.6,1505.5,0.00996942]
[1744300517992,4.53707,1505.6,1505.5,0.00996942]
[1744300518190,1.32954,1505.3,1505.2,9.9142]
[1744300518383,12.84228,1505.5,1505.0,3.2078]
[1744300518587,1.32963,1505.2,1505.1,3.2078]
[1744300519200,3.32388,1505.3,1504.9,3.2078]
[1744300519399,1.3298,1505.1,1505.0,10.11286942]
[1744300519591,1.3298,1505.1,1505.0,0.00996942]
[1744300520189,1.32966,1505.2,1505.0,3.21776942]
[1744300520389,1.32966,1505.2,1505.1,10.1029]
[1744300520894,3.32314,1505.7,1505.0,3.21776942]
[1744300521199,1.32965,1505.2,1505.0,3.21776942]
[1744300521499,1.32949,1505.4,1505.1,11.43258]
[1744300521795,3.33258942,1505.9,1505.2,3.2078]
[1744300521997,3.33258942,1505.9,1505.4,4.53721]
[1744300522194,0.00996942,1505.9,1505.8,4.5369]
[1744300522491,0.00996942,1505.9,1505.8,3.2078]
[1744300522693,1.33903942,1505.9,1505.8,40.8]
[1744300522896,0.00996942,1505.9,1505.8,49.0078]
[1744300523093,0.00996942,1505.9,1505.8,50.3369]
[1744300523287,1.3291,1505.8,1505.7,10.4444]
[1744300523993,3.33249942,1505.9,1505.4,44.0078]
[1744300524190,3.32297,1505.7,1505.3,10.4444]
[1744300524495,1.32942,1505.5,1505.3,10.4444]
[1744300524693,1.32942,1505.5,1505.3,51.2444]
[1744300524893,1.32945,1505.4,1505.3,51.2444]
[1744300525097,1.32945,1505.4,1505.3,40.8]
[1744300525287,3.3235,1505.5,1505.1,4.7808]
[1744300525591,0.64123432,1506.5,1506.4,1.32857]
[1744300525793,13.20771672,1508.0,1506.4,44.0078]
[1744300525996,3.31973,1507.2,1506.4,40.8]
[1744300526193,1.32848,1506.5,1506.4,3.2078]
[1744300526695,1.32874,1506.2,1506.1,3.2078]
[1744300526902,9.5775,1506.4,1506.1,3.2078]
[1744300527596,110.8905,1506.4,1506.1,3.2078]
[1744300527797,1.32872,1506.3,1506.1,3.2078]
[1744300528097,11.49724,1506.2,1506.1,3.2078]
[1744300528601,16.49724,1506.2,1506.1,3.2078]
[1744300528899,16.49724,1506.2,1505.4,1.32938]
[1744300528900,1.32903,1505.9,1505.6,3.2078]
[1744300529104,11.49763,1505.8,1505.6,3.2078]
[1744300529295,10.1685,1505.8,1505.2,8.085]
[1744300529601,1.32941,1505.5,1505.2,3.2078]
[1744300529902,10.1685,1505.4,1505.2,3.21776942]
[1744300530199,11.49801,1505.4,1505.2,0.00996942]
[1744300530389,1.32954,1505.3,1505.2,0.00996942]
[1744300530592,10.1685,1505.4,1505.2,0.00996942]
[1744300530794,1.32954,1505.3,1505.2,0.00996942]
[1744300533106,6.32954,1505.3,1505.2,9.42e-06]
[1744300533603,15.97784,1505.3,1505.2,9.42e-06]
[1744300534000,14.6483,1505.3,1504.5,3.2078]
[1744300534201,1.32981,1505.0,1504.6,3.2078]
[1744300534403,1.32984,1505.0,1504.6,3.2078]
[1744300535198,1.32991,1504.9,1504.6,3.21776942]
[1744300535402,1.33002,1504.8,1504.6,3.21776942]
[1744300535603,1.32991,1504.9,1504.6,3.21776942]
[1744300535800,1.33007,1504.7,1504.6,3.21776942]
[1744300536007,1.33007,1504.7,1504.6,0.00996942]
[1744300536198,10.4806,1504.9,1504.6,0.00996942]
[1744300536397,1.33007,1504.7,1504.6,0.00996942]
[1744300538407,6.33007,1504.7,1504.6,9.42e-06]
[1744300538805,4.53787,1504.7,1504.6,9.42e-06]
[1744300539004,9.53787,1504.7,1504.6,9.42e-06]
[1744300539203,9.86474099,1504.7,1504.6,9.42e-06]
[1744300539403,1.33078,1503.9,1503.8,1.54433]
[1744300539603,1.33113,1503.5,1503.4,9.8114]
[1744300539800,1.33131,1503.3,1503.2,4.8125]
[1744300540000,1.33139,1503.2,1503.1,9.8114]
[1744300540498,1.34133942,1503.3,1503.1,9.8114]
[1744300540801,1.33139,1503.2,1503.1,9.8114]
[1744300541309,0.00996942,1503.3,1503.0,0.0066369]
[1744300541604,1.33148,1503.1,1503.0,0.0066369]
[1744300542802,1.33193,1502.6,1502.5,12.9370341]
[1744300543204,9.4612,1503.0,1502.5,21.1448341]
[1744300543405,1.33178,1502.8,1502.7,3.2078]
[1744300543900,3.2078,1503.1,1502.7,3.2078]
[1744300544099,1.33166,1502.9,1502.8,9.7657]
[1744300544306,3.32894,1503.0,1502.4,3.2078]
[1744300544501,1.332,1502.6,1502.4,3.2078]
[1744300544706,1.33202,1502.5,1502.2,3.2078]
[1744300544901,1.33237,1502.1,1502.0,3.2078]
[1744300545109,3.33005,1502.5,1502.0,3.2078]
[1744300545110,1.33229,1502.2,1502.0,3.2078]
[1744300545303,1.33275,1501.7,1501.6,3.2078]
[1744300545511,1.34226942,1502.2,1501.8,1.33255]
[1744300545706,1.34226942,1502.2,1501.9,12.9735]
[1744300545906,0.00996942,1502.2,1501.9,12.9735]
[1744300546097,1.33246,1502.0,1501.9,12.9735]
[1744300546302,0.00996942,1502.2,1501.9,12.9735]
[1744300546610,1.33246,1502.0,1501.9,9.7657]
[1744300547009,0.00996942,1502.2,1501.9,16.09822]
[1744300547209,1.33239,1502.1,1501.9,12.9735]
[1744300547504,0.00996942,1502.2,1502.0,40.8]
[1744300547807,0.00996942,1502.2,1502.1,13.2539]
[1744300548110,1.34224942,1502.2,1502.1,10.0461]
[1744300548404,106.46196942,1502.2,1501.6,3.2078]
[1744300548611,1.33308,1501.3,1501.2,3.2078]
[1744300549204,1.33335,1501.0,1500.9,10.0461]
[1744300549510,3.33305,1501.2,1500.7,5.2332]
[1744300549817,1.33344,1500.9,1500.8,9.7668]
[1744300549999,1.3337,1500.6,1500.5,40.8]
[1744300550312,1.33376,1500.6,1500.4,3.2078]
[1744300550608,1.33379,1500.5,1500.4,3.2078]
[1744300550907,4.54135,1500.8,1500.4,53.7746]
[1744300551204,3.33362,1500.9,1500.4,53.7746]
[1744300551407,1.33379,1500.5,1500.4,3.2078]
[1744300551598,0.00996942,1500.6,1500.4,3.2078]
[1744300551806,1.34369942,1500.6,1500.5,9.7668]
[1744300552203,0.00996942,1500.6,1500.5,9.7668]
[1744300552604,1.34366942,1500.6,1500.5,9.7668]
[1744300553308,3.33186,1501.7,1500.6,6.54206]
[1744300553504,10.1773,1501.6,1501.0,3.2078]
[1744300553715,13.50939,1501.6,1500.8,3.2078]
[1744300553911,1.33312,1501.3,1501.1,3.2078]
[1744300554100,1.33317,1501.2,1501.1,3.2078]
[1744300554306,19.0567,1501.7,1501.0,3.2078]
[1744300554501,1.3332,1501.2,1501.0,0.00996942]
[1744300554708,0.00996942,1501.3,1501.0,0.00996942]
[1744300554907,1.33326,1501.1,1501.0,0.00996942]
[1744300555212,3.33315,1501.1,1500.7,3.2078]
[1744300555512,16.30867,1501.0,1500.4,3.2078]
[1744300555707,1.33355,1500.8,1500.5,1.33372]
[1744300555910,16.30868,1501.0,1500.4,3.2078]
[1744300556113,9.7675,1501.0,1500.7,3.2078]
[1744300556312,1.3334,1501.0,1500.9,3.2078]
[1744300556710,12.52,1501.2,1500.9,13.059]
[1744300556912,1.33335,1501.0,1500.9,13.059]
[1744300557511,1.33333,1501.1,1500.9,53.859]
[1744300557819,1.33335,1501.0,1500.9,50.6512]
[1744300558204,12.52,1501.2,1500.9,50.6512]
[1744300558412,3.21776942,1501.3,1500.9,53.98458]
[1744300558615,0.00996942,1501.3,1501.1,3.2078]
[1744300558813,1.34304942,1501.3,1501.2,9.5148]
[1744300559311,0.00996942,1501.3,1501.2,15.84797]
[1744300560915,111.3943,1502.0,1501.4,3.33238]
[1744300561106,3.2078,1502.1,1501.7,3.33178]
[1744300561306,3.2078,1502.3,1501.9,3.33131]
[1744300561503,1.33232,1502.2,1502.1,1.33235]
[1744300561711,3.2078,1502.3,1501.7,3.3318]
[1744300561917,1.33241,1502.1,1502.0,1.33246]
[1744300562106,0.00996942,1502.2,1502.0,1.33245]
[1744300562415,0.00996942,1502.2,1502.0,1.33246]
[1744300562616,0.00996942,1502.2,1501.9,1.33248]
[1744300562810,0.00996942,1502.2,1502.0,1.33242]
[1744300563114,1.34233942,1502.2,1502.0,1.33242]
[1744300563315,1.34233942,1502.2,1502.1,1.33237]
[1744300563516,0.00996942,1502.2,1502.1,42.13237]
[1744300563724,0.00996942,1502.2,1502.1,47.13237]
[1744300564212,10.246,1502.7,1502.4,1.33206]
[1744300564415,3.32939,1502.8,1502.2,3.2078]
[1744300564713,3.3301,1502.5,1502.1,40.8]
[1744300564916,1.33235,1502.2,1502.1,1.33237]
[1744300565120,1.3324,1502.1,1502.0,1.33242]
[1744300565308,3.33052,1502.3,1501.9,3.2078]
[1744300565309,0.00996942,1502.3,1501.9,3.2078]
[1744300565508,0.00996942,1502.3,1502.2,3.2078]
[1744300565719,0.00996942,1502.3,1502.2,4.54008]
[1744300565916,0.00996942,1502.3,1502.2,9.54008]
[1744300566215,12.19,1503.0,1502.2,8.2078]
[1744300566518,13.5738,1503.1,1502.4,3.2078]
[1744300566812,1.33174,1502.9,1502.6,3.2078]
[1744300567012,1.3316,1503.0,1502.9,1.33158]
[1744300567314,0.00996942,1503.1,1503.0,1.33153]
[1744300567814,0.00996942,1503.1,1503.0,1.33157]
[1744300568013,0.00996942,1503.1,1502.8,3.21776942]
[1744300568210,0.00996942,1503.1,1503.0,1.33157]
[1744300568407,0.00996942,1503.1,1503.0,4.53937]
[1744300568613,1.33103,1503.7,1503.5,1.33105]
[1744300568810,3.2078,1503.6,1503.3,3.32825]
[1744300569010,3.2078,1503.9,1503.1,6.19243]
[1744300569216,3.2078,1503.9,1503.6,1.33102]
[1744300569421,3.2078,1504.2,1503.6,6.53538]
[1744300569716,3.3265,1504.1,1503.7,0.00996942]
[1744300569923,1.33069,1504.0,1503.7,0.00996942]
[1744300570114,1.33077,1503.9,1503.7,1.34086942]
[1744300570317,1.33086,1503.8,1503.7,0.00996942]
[1744300570711,9.81506942,1504.1,1503.7,6.34088942]
[1744300570911,9.81506942,1504.1,1503.8,40.8]
[1744300571116,1.33077,1503.9,1503.8,40.8]
[1744300571322,9.81506942,1504.1,1503.9,1.33074]
[1744300571323,1.34061942,1504.1,1503.9,1.33074]
[1744300571625,1.33077,1503.9,1503.8,40.8]
[1744300571820,1.33086,1503.8,1503.7,0.00996942]
[1744300572522,1.33081,1503.9,1503.7,0.00996942]
[1744300572818,1.33086,1503.8,1503.7,0.00996942]
[1744300573022,18.1291,1504.0,1503.0,3.2078]
[1744300573219,3.2078,1503.5,1503.1,4.861]
[1744300573518,1.33157,1503.0,1502.9,4.9437]
[1744300573735,13.1291,1503.4,1502.7,1.33177]
[1744300573920,1.33176,1502.8,1502.3,4.7822]
[1744300574221,1.33169,1502.9,1502.6,1.33185]
[1744300574413,0.00996942,1502.7,1502.6,1.33185]
[1744300574617,0.00996942,1502.7,1502.6,4.53965]
[1744300574822,3.32834,1503.3,1502.6,4.53965]
[1744300574823,6.53463,1504.0,1502.8,3.2078]
[1744300575023,1.33102,1503.7,1503.5,3.2078]
[1744300575222,1.33096,1503.7,1503.5,4.5389]
[1744300575621,10.4899,1503.9,1503.5,4.5389]
[1744300575622,10.4899,1503.9,1503.5,8.2078]
[1744300575924,1.33099,1503.7,1503.5,3.2078]
[1744300576218,1.33095,1503.8,1503.5,4.54880942]
[1744300576416,1.33104,1503.6,1503.5,3.21776942]
[1744300576614,1.33104,1503.6,1503.5,0.00996942]
[1744300576819,3.32783,1503.5,1503.0,1.33157]
[1744300577025,1.33145,1503.2,1503.0,1.33157]
[1744300577624,4.53925058,1503.2,1503.0,1.33155]
[1744300577921,1.33152,1503.1,1502.9,44.01776942]
[1744300578227,1.33125,1503.4,1503.2,1.33139]
[1744300578419,3.20779058,1503.4,1503.0,9.5427]
[1744300578618,1.33157,1503.0,1502.9,0.00996942]
[1744300579026,4.53936058,1503.0,1502.9,0.00996942]
[1744300579823,9.80696942,1503.1,1502.9,3.21776942]
[1744300580019,0.00996942,1503.1,1503.0,1.33157]
[1744300580218,0.00996942,1503.1,1503.0,11.28827]
[1744300580619,1.34144942,1503.1,1503.0,9.9567]
[1744300581223,0.00996942,1503.1,1503.0,11.28827]
[1744300581627,1.34144942,1503.1,1503.0,11.28827]
[1744300581826,0.00996942,1503.1,1503.0,11.28827]
[1744300582530,1.34144942,1503.1,1503.0,9.9567]
[1744300582727,0.00996942,1503.1,1503.0,11.28827]
[1744300582921,1.33115,1503.5,1503.4,1.33116]
[1744300583120,1.33104,1503.6,1503.5,1.33106]
[1744300583324,3.32739,1503.7,1503.4,3.2078]
[1744300583519,3.2078,1503.7,1503.2,3.2078]
[1744300583717,1.33157,1503.0,1502.9,0.00996942]
[1744300583929,6.53567,1503.5,1502.9,3.33905942]
[1744300584133,0.00996942,1503.1,1503.0,3.2078]
[1744300584433,0.00996942,1503.1,1503.0,45.33937]
[1744300584619,0.00996942,1503.1,1503.0,50.33937]
[1744300584928,0.00996942,1503.1,1503.0,45.33937]
[1744300585930,3.21776,1503.1,1503.0,40.8]
[1744300586119,3.2078,1503.7,1503.2,3.32844]
[1744300586322,1.33113,1503.5,1503.4,1.33118]
[1744300586621,13.58319,1503.6,1503.3,1.33127]
[1744300586928,10.2555,1503.6,1503.2,40.8]